{"text_format":"1","workbook":"xlsx","n_sheets":1,"sheets":["conceptos"],"not_rendered":{"charts":0,"images":2,"macros":1,"external_links":0,"defined_names":1,"comments":0,"pivot_tables":0},"unopened":[],"bounds":{"document_bytes":16777216,"sheet_cells":100000,"rows_first":2000,"rows_last":500,"rows_between":2000,"halvings":0,"cell_chars":16384,"cell_head_chars":4096},"cells_cut":0,"cells_raw":0,"read":"whole","date_system":"1900"}

{"sheet":"conceptos","index":0,"n_rows":104,"n_cols":8,"rows_kept":104,"cut":false,"hidden":false,"merged":[[101,0,101,4],[102,0,103,4],[13,0,13,6],[0,2,0,5],[9,2,9,5],[1,2,3,5],[4,2,4,3],[6,2,6,3],[7,2,7,3],[4,4,4,5],[5,4,5,5],[6,4,6,5],[7,4,7,5],[10,2,10,5],[11,2,11,5],[5,1,8,1]]}
[null,"GOBIERNO DEL ESTADO DE JALISCO","LICITACIÓN PÚBLICA ESTATAL"]
[null,"INSTITUTO DE LA INFRAESTRUCTURA FÍSICA EDUCATIVA DEL","E-REM-B-REH-04736-LP-0073-2020"]
[null,"ESTADO DE JALISCO"]
[]
[null,"DESCRIPCIÓN GENERAL DE LOS TRABAJOS:","FECHA DE INICIO:"]
[null,null,null,"FECHA DE TERMINACIÓN:"]
[null,null,"PLAZO DE EJECUCIÓN:"]
[null,null,"FECHA:"]
[]
[null,"RAZÓN SOCIAL DEL LICITANTE:","NOMBRE, CARGO Y FIRMA DEL LICITANTE:",null,null,null,"DOCUMENTO"]
[]
[]
[]
["PRESUPUESTO DE OBRA"]
[]
["CLAVE","DESCRIPCIÓN","UNIDAD","CANTIDAD","PRECIO UNITARIO ($)","PRECIO UNITARIO ($) CON LETRA","IMPORTE ($) M.N."]
["TRABAJO : BAS-REH-04736","REHABILITACIÓN GENERAL EN EL JARDÍN DE NIÑOS EMILIANO ZAPATA CCT 14DJN0034Z, UBICADO EN COLONIA EMILIANO ZAPATA, MUNICIPIO DE PUERTO VALLARTA, JALISCO.",null,null,null,null,{"$f":"TEXT(SUM(G18 + G45 + G54 + G63 + G71), \"$ #,##0.00 ;\")","v":"$ 0.00 "}]
["SAN","SANITARIOS",null,null,null,null,{"$f":"TEXT(SUM(G19 + G27 + G29 + G31 + G35 + G39), \"$ #,##0.00 ;\")","v":"$ 0.00 "}]
["SAN.01(140)","DEMOLICIONES, DESMONTAJES Y MECANICA DE SUELOS    ",null,null,null,null,{"$f":"TEXT(SUM(G20:G26), \"$ #,##0.00 ;\")","v":"$ 0.00 "}]
[140078,"DEMOLICION DE AZULEJO A CUALQUIER NIVEL, INCLUYE:,(PROTECCIONES DE PISOS, VIDRIOS, PUERTAS, VENTANAS, LAMPARAS Y DEMAS INSTALACIONES QUE PUDIERAN RESULTAR DAÑADAS EN EL PROCESO DE LA DEMOLICION.) HERRAMIENTAS, EQUIPO DE SEGURIDAD,  ANDAMIOS, MANO DE OBRA, ACARREO DEL PRODUCTO DE LA DEMOLICION  DENTRO Y FUERA DE LA OBRA Y LIMPIEZA DEL AREA DE TRABAJO.","M2 ","128.0000",0,"CERO PESOS 00/100 M.N.",0,227604]
[140123,"DESMANTELAR Y RETIRAR INSTALACION HIDRAULICA EXISTENTE. INCLUYE: HERRAMIENTA, MANO DE OBRA, LIMPIEZA DEL AREA DE TRABAJO, ACARREO DEL MATERIAL PRODUCTO DEL DESMANTELAMIENTO DENTRO Y FUERA DE LA OBRA.\n","SAL","32.0000",0,"CERO PESOS 00/100 M.N.",0,227605]
[140124,"DESMANTELAR Y RETIRAR INSTALACION SANITARIA EXISTENTE. INCLUYE:MANO DE OBRA, HERRAMIENTA, LIMPIEZA DEL AREA DE TRABAJO,  ACARREO DEL MATERIAL PRODUCTO DEL DESMANTELAMIENTO DENTRO Y FUERA DE LA OBRA.\n","SAL","32.0000",0,"CERO PESOS 00/100 M.N.",0,227606]
[140199,"DESMONTAJE DE PUERTAS Y MAMPARAS CON MARCO Y CONTRA MARCOS DE HERRERIA TUBULAR Y/O DE ALUMINIO EXISTENTES EN OBRA, SIN RECUPERACION, TRASLADO Y GUARDADO EN BODEGA O LUGAR INDICADO POR SUPERVISION. INCLUYE; ANTEPECHO, DEMOLICION DE ANCLAJES, ACARREO Y RETIRO FUERA DE OBRA DE MATERIAL PRODUCTO DE LA DEMOLICION, MANO DE OBRA CALIFICADA Y LIMPIEZA DEL AREA DE TRABAJO.","M2 ","11.6000",0,"CERO PESOS 00/100 M.N.",0,227611]
[140588,"DEMOLICION DE  PISOS Y/O FIRMES DE CONCRETO SIMPLE DE 5 A 7 CM. DE ESPESOR PROMEDIO, EN SECCIONES OBLIGADAS, POR CUALQUIER MEDIO, INCLUYE:  MANO DE OBRA, HERRAMIENTA, EQUIPO,  CARGA Y ACARREO DE ESCOBRO FUERA DE LA OBRA AL LUGAR PERMITIDO POR LAS AUTORIDADES CORRESPONDIENTES.","M2 ","48.0000",0,"CERO PESOS 00/100 M.N.",0,227612]
[140602,"DEMOLICION DE FIRME Y/O PISO DE CONCRETO DE 10 CM DE ESPESOR PROMEDIO, EN SECCIONES OBLIGADAS, INC. CORTE CON DISCO PARA DELIMITAR AREA DE DEMOLICION; MANO DE OBRA, HERRAMIENTA, EQUIPO,  CARGA Y ACARREO INTERIOR Y FUERA DE LA OBRA DEL MATERIAL PRODUCTO DE LA DEMOLICION.","M2 ","48.0000",0,"CERO PESOS 00/100 M.N.",0,227613]
[140877,"DESINSTALACION DE MUEBLES DE BAÑOS YA SEA INODORO, LAVABO, VERTEDERO, ETC., CON RECUPERACION INCL.; ACARREO DEL MUEBLE AL LUGAR DEL DEPOSITO.","PZA","20.0000",0,"CERO PESOS 00/100 M.N.",0,227614]
["SAN.02(160)","CIMENTACION                                       ",null,null,null,null,{"$f":"TEXT(SUM(G28:G28), \"$ #,##0.00 ;\")","v":"$ 0.00 "}]
[180056,"RELLENO COMPACTADO CON EQUIPO MECANICO DE SUELO-CEMENTO, A BASE DE MATERIAL DE BANCO (TEPETATE) EN PROPORCIÓN DE 25 KGS. DE CEMENTO GRIS POR M3. EN CEPAS O CAJON, A CUALQUIER PROFUNDIDAD, COMPACTADO AL 95% PROCTOR, EN CAPAS DE 15 CM. INCLUYE:  SUMINISTRO DE AGUA PARA LOGRAR HUMEDAD OPTIMA, MEZCLACO, TENDIDO, TRASPALEOS,  DESPERDICIOS, EQUIPO, PRUEBAS DE COMPACTACION, AFINE, NIVELACION, HERRAMIENTAS, MANO DE OBRA Y  ACARREO HASTA EL SITIO DE SU COLOCACION.  (VOLUMEN MEDIDO COMPACTADO).","M3 ","19.2000",0,"CERO PESOS 00/100 M.N.",0,227619]
["SAN.03(355)","RECUBRIMIENTOS Y ACABADOS                         ",null,null,null,null,{"$f":"TEXT(SUM(G30:G30), \"$ #,##0.00 ;\")","v":"$ 0.00 "}]
[358007,"SUMINISTRO Y COLOCACION DE LOSETA CERAMICA PARA MURO ( AZULEJO ), CON RECUBRIMIENTO ESMALTADO DE COLOR, , CALIDAD DE PRIMERA, MCA. DALTILE, MODELO TRENTO O SIMILAR, DE 30 X 45 CM.ASENTADO CON PEGAZULEJO Y JUNTEDO CON JUNTEADOR DE COLOR,  JUNTAS A HUESO, INCLUYE: TRAZO, CORTE, REMATES, ESCUADRE, DESPERDICIOS, DESPATINADO, EMBOQUILLADOS, CERTIFICADO DE CALIDAD, HERRAMIENTAS, MATERIALES,  MANO DE OBRA, LIMPIEZA Y ACARREO DE MATERIALES AL SITIO DE SU UTILIZACION, A CUALQUIER NIVEL.","M2 ","128.0000",0,"CERO PESOS 00/100 M.N.",0,227635]
["SAN.04(372)","PISOS                                             ",null,null,null,null,{"$f":"TEXT(SUM(G32:G34), \"$ #,##0.00 ;\")","v":"$ 0.00 "}]
[360565,"SUMINISTRO Y COLOCACION DE MALLA ELECTROSOLDADA 6X6-10/10 COMO REFUERZO EN PISOS DE CONCRETO, INCLUYE: DESPERDICIOS, TRASLAPES, HERRAMIENTA Y ACARREO DEL MATERIAL AL SITIO DE SU COLOCACION.","M2 ","48.0000",0,"CERO PESOS 00/100 M.N.",0,227636]
[372242,"FIRME DE CONCRETO F´C= 150 KG/CM2 TMA= 3/4\",  DE 8 CM DE ESPESOR, ACABADO APALILLADO. INCLUYE: TRAZO, NIVELACION, AFINE Y COMPACTACION DEL TERRENO, AGUA, MATERIALES, EXTENDIDO, REGLEADO, CURADO, DESPERDICIOS, HERRAMIENTAS, LIMPIEZA, MANO DE OBRA Y ACARREO DEL MATERIAL AL SITIO DE SU UTILIZACION","M2 ","48.0000",0,"CERO PESOS 00/100 M.N.",0,227637]
[376046,"SUMINISTRO Y COLOCACION DE PISO DE  LOSETA CERAMICA DE 30 X 30 CM., 33 X 33 CM., PRENSADO EN SECO, CON RECUBRIMIENTO ESMALTADO DE COLOR, QUEMADO A MONOCOCCION A TEMPERATURAS DE 1,150 A 1200 °C,  CALIDAD DE PRIMERA, QUE DEBERA CUMPLIR CON LAS SIGUIENTES CARACTERISTICAS TECNICAS: ABSORCION <= 3% , COEFICIENTE DE ESTATICO DE FRICCION >= 0.5, MODULO DE RUPTURA >= 300 KG/CM², PEI, RESISTENCIA A LA ABRASION VISIBLE 1500 CICLOS (PEI IV), RESISTENTE AL MANCHADO, RESISTENCIA AL RAYADO >= 5.0 MOHS, RESISTENTE A LOS QUIMICOS. ASENTADO CON PEGAPISO Y JUNTEDO CON JUNTEADOR DE COLOR,  JUNTAS DE 4 MM. DE ANCHO, MINIMO,  INCLUYE: TRAZO, CORTE, REMATES, ESCUADRE, DESPERDICIOS, DESPATINADO, EMBOQUILLADOS, CERTIFICADO DE CALIDAD, HERRAMIENTAS, MATERIALES,  MANO DE OBRA, LIMPIEZA  Y ACARREO DE MATERIALES AL SITIO DE SU UTILIZACION, A CUALQUIER NIVEL.","M2 ","48.0000",0,"CERO PESOS 00/100 M.N.",0,227638]
["SAN.05(410)","CANCELERIA, HERRERIA, ALUMINIO, VIDRIOS Y CHAPAS  ",null,null,null,null,{"$f":"TEXT(SUM(G36:G38), \"$ #,##0.00 ;\")","v":"$ 0.00 "}]
[412013,"SUMINISTRO, FABRICACION Y COLOCACION DE HERRERIA TUBULAR Y/O ESTRUCTURAL, INCLUYE: SOLDADURA, ELEMENTOS DE FIJACION, MATERIALES MENORES, DESCALIBRES, DESPERDICIOS, BISAGRAS, FONDO ANTICORROSIVO, FLETES, HERRAMIENTAS, EQUIPO, MANO DE OBRA  Y ACARREO DE MATERIALES AL SITIO DE SU UTLIZACION.","KG ","340.0000",0,"CERO PESOS 00/100 M.N.",0,227639]
[422022,"SUMINISTRO Y COLOCACION DE MULTYPUERTA DE 0.90 X 2.10 M. INCLUYE: MARCO, JAMBA Y CUBRECANTOS DE ALUMINIO, HERRAJES, ANTEPECHO CON PERFILES DE ALUMINIO ANODIZADO NATURAL DE 0.90 X 0.40 M, ELEMENTOS DE FIJACION, MATERIALES MENORES, SELLADO PERIMETRAL, FLETES Y ACARREOS DE MATERIALES AL SITIO DE SU COLOCACION, A CUALQUIER NIVEL.","PZA","1.0000",0,"CERO PESOS 00/100 M.N.",0,227640]
[424044,"SUMINISTRO Y COLOCACION DE CHAPA PHILLIPS DOBLE MANIJA MOD.  550 A.N., INCLUYE: HERRAMIENTA, MATERIALES, ACARREO DE MATERIAL AL SITIO DE SU UTILIZACION, A CUALQUIER NIVEL Y TODO LO NECESARIO PARA SU CORRECTA INSTALACION Y MANTENIMIENTO.","PZA","1.0000",0,"CERO PESOS 00/100 M.N.",0,227641]
["SAN.06(564)","INSTALACION HIDRAULICA, SANITARIA Y GAS EN EDIF.  ",null,null,null,null,{"$f":"TEXT(SUM(G40:G44), \"$ #,##0.00 ;\")","v":"$ 0.00 "}]
[570614,"SALIDA HIDRAULICA DE AGUA FRIA Y/O CALIENTE, PARA ALIMENTACION A MUEBLE SANITARIO, CONSISTENTE EN TUBERIA Y CONEXIONES DE CPVC DE 1/2\" A 2\" DE DIAMETRO,  INCLUYE: TRAZO, RANURAS, CAMARAS CONTRA GOLPE DE ARIETE, CONEXIONES, ( COPLES, CODOS, TAPONES, TEES, YEES, REDUCCIONES, ETC),  VALVULAS, TUERCAS UNION EN CUADROS DE VALVULAS, MATERIALES MENORES Y DE CONSUMO, PEGAMENTOS, ELEMENTOS DE FIJACION, DESPERDICIOS,  HERRAMIENTAS, LIMPIEZA, MANO DE OBRA, PRUEBAS HIDROSTATICAS, FLETES Y ACARREO DE LOS MATERIALES AL SITIO DE SU INSTALACION. (EN CUALQUIER NIVEL)","SAL","32.0000",0,"CERO PESOS 00/100 M.N.",0,227642]
[571102,"SALIDA SANITARIA A MUEBLE, CONSISTENTE EN TUBERIA Y CONEXIONES DE PVC DE 2\" Y 4\" DE DIAMETRO, INCLUYE: DESPERDICIO DE TUBERIA, LINEA DE VENTILACION (DESFOGUE),  COPLES, CODOS, TEES, YEES, REDUCCIONES, REGISTRO SANITARIO, MATERIALES MENORES, FLETES Y ACARREO DE LOS MATERIALES AL SITIO DE SU INSTALACION Y PRUEBAS.\n","SAL","32.0000",0,"CERO PESOS 00/100 M.N.",0,227643]
[585014,"SUMINISTRO Y COLOCACION DE TUBO DE P.V.C. SANITARIO (ANGER)  SERIE 25, CAMPANA, DE 6\" (150 MM) DIAM., INCLUYE: CONEXIONES, TRAZO, EXCAVACION,  PASOS POR CIMENTACION, CAMA DE ARENA, RELLENO COMPACTADO, DESPERDICIOS, PRUEBAS Y ACARREO DE MATERIALES AL SITIO DE SU COLOCACION.","ML ","12.0000",0,"CERO PESOS 00/100 M.N.",0,227644]
[585020,"SUMINISTRO Y COLOCACION DE TUBO DE P.V.C. SANITARIO (ANGER) SERIE 25, CAMPANA, DE 8\" (200 MM) DIAM., INCLUYE: CONEXIONES, TRAZO, EXCAVACION, CAMA DE ARENA, RELLENO COMPACTADO, DESPERDICIOS, PRUEBAS, PASOS POR CIMENTACION Y ACARREO DE MATERIALES AL SITIO DE SU COLOCACION.","ML ","10.0000",0,"CERO PESOS 00/100 M.N.",0,227645]
[592012,"SUMINISTRO Y COLOCACION DE CESPOL BOTE DE P.V.C. CON REJILLA CROMADA. INCLUYE: MATERIALES MENORES Y DE CONSUMO, HERRAMIENTAS, DESPERDICIOS, PRUEBAS, MANO DE OBRA Y ACARREO DE MATERIALES AL SITIO DE SU COLOCACION.","PZA","8.0000",0,"CERO PESOS 00/100 M.N.",0,227646]
["A","EDIFICIO A",null,null,null,null,{"$f":"TEXT(SUM(G46 + G49), \"$ #,##0.00 ;\")","v":"$ 0.00 "}]
["A.01(140)","DEMOLICIONES, DESMONTAJES Y MECANICA DE SUELOS    ",null,null,null,null,{"$f":"TEXT(SUM(G47:G48), \"$ #,##0.00 ;\")","v":"$ 0.00 "}]
[140176,"DEMOLICION DE HORMIGON, IMPERMEABILIZANTE Y  ENLADRILLADO DE AZOTEA EN CUBIERTAS CON UN ESPESOR TOTAL DE 13 CM PROMEDIO, INCLUYE: HERRAMIENTA, EQUIPO NECESARIO, MANO DE OBRA, LIMPIEZA, ACARREO  Y RETIRO DE MATERIAL PRODUCTO DE LA DEMOLICION FUERA DE LA OBRA.\n","M2 ","168.0000",0,"CERO PESOS 00/100 M.N.",0,227607]
[948107,"RETIRO DE CALAFATEO DE JUNTAS DE DILATACION DE ENLADRILLADO DE AZOTEA EXISTENTE EN MAL ESTADO CON DIMENSIONES DE 3.5 CMS. DE ANCHO Y 2.0 CMS. DE PROFUNDIDAD, INCLUYE: HERRAMIENTA, LIMPIEZA, MANO DE OBRA, OPERACION, EQUIPO DE SEGURIDAD, LIMPIEZA Y RETIRO DEL MATERIAL PRODUCTO DEL CALAFATEO EXISTENTE FUERA DE LA OBRA.","ML ","37.0000",0,"CERO PESOS 00/100 M.N.",0,227615]
["A.02(319)","ENTREPISOS, CUBIERTA Y ACABADOS DE AZOTEA         ",null,null,null,null,{"$f":"TEXT(SUM(G50:G53), \"$ #,##0.00 ;\")","v":"$ 0.00 "}]
[322403,"FINO DE 1.5 CM. DE ESPESOR PROMEDIO, CON MORTERO DE CEMENTO-ARENA PROP. 1:3, PREVIA APLICACION DE IMPREGNACION EN LA TOTALIDAD DEL AREA DE FESTER BOND CON UN RENDIMIENTO DE 0.1667 LTS/M2, ACABADO APALILLADO, PARA RECIBIR SISTEMA IMPERMEABILIZACION PREFABRICADO O LOSETA CERAMICA, ETC., INCLUYE: MATERIALES, CIMBRA EN FRONTERAS, REMATES, DESPERDICIOS, HERRAMIENTAS, LIMPIEZAS, MANO DE OBRA  Y ACARREOS DEL MATERIAL AL SITIO DE SU UTILIZACION, A CUALQUIER NIVEL.\n","M2 ","104.0000",0,"CERO PESOS 00/100 M.N.",0,227621]
[324232,"FORJADO DE ZAVALETA EN AZOTEA A BASE DE JALCRETO SIMPLE F´C=100 KG/CM2, DE 15 CM POR LADO, A 45°, CON ACABADO APALILLADO, INCLUYE: MATERIALES, DESPERDICIOS, HERRAMIENTAS, EQUIPO DE SEGURIDAD, LIMPIEZA, MANO DE OBRA Y ACARREO DE MATERIALES AL LUGAR DE SU UTILIZACION A CUALQUIER NIVEL.","ML ","20.0000",0,"CERO PESOS 00/100 M.N.",0,227625]
[344125,"IMPERMEABILIZACION DE MUROS O LOSAS, A BASE DE MEMBRANA PREFABRICADA, MCA. IMPERQUIMIA, UNIPLAS AERO PLUS SBS, ALTO DESEMPEÑO CON VENTILACION ANTIABOLSAMIENTOS, FABRICADA A BASE DE ASFALTOS MODIFICADOS CON POLIMEROS SINTETICOS SBS (ESTIRENO BUTADIENO ESTIRENO) REFORZADA CON MALLA POLIESTER DE ALTA RESISTENCIA, ACABADO APARENTE A BASE DE GRAVILLA ESMALTADA A FUEGO, 4.5 MM  DE ESPESOR TOTAL, COLOR ROJO TERRACOTA, GARANTIA POR ESCRITO DE 10 AÑOS, POR LA EMPRESA CONTRATISTA., INCLUYE: LIMPIEZA Y PREPARACION DE LA SUPERFICIE, APLICACION DE PRIMER IMPERCOAT PRIMARIO SL, PARA ANCLAJE Y TAPAPORO DE LA SUPERFICIE, SELLADO DE FISURAS Y GRIETAS A BASE DE CEMENTO PLASTICO BITUMINOSO IMPERCOAT CEMENTO SBS, SUMINISTRO Y COLOCACION DE MEMBRANA POR MEDIO DE TERMOFUSION A BASE DE FUEGO DE SOPLETE DE GAS BUTANO, HACIENDO TRASLAPES MINIMOS DE 0.10 MTS. EN AMBOS SENTIDOS, SELLADO DE ORILLAS, REMATES Y TRASLAPES, MATERIALES MENORES Y DE CONSUMO, CORTES, DESPERDICIOS, LIMPIEZA GENERAL, HERRAMIENTAS, MANO DE OBRA ESPECIALIZADA Y ACARREOS AL SITIO DE SU COLOCACION.","M2 ","168.0000",0,"CERO PESOS 00/100 M.N.",0,227627]
[344860,"CALAFATEO DE JUNTAS DE DILATACION EN AZOTEA CON CEMENTO PLASTICO ASFALTICO, INCLUYE IMPRIMACION Y LIMPIEZAS.","ML ","37.0000",0,"CERO PESOS 00/100 M.N.",0,227631]
["B","EDIFICIO B",null,null,null,null,{"$f":"TEXT(SUM(G55 + G58), \"$ #,##0.00 ;\")","v":"$ 0.00 "}]
["B.01(140)","DEMOLICIONES, DESMONTAJES Y MECANICA DE SUELOS    ",null,null,null,null,{"$f":"TEXT(SUM(G56:G57), \"$ #,##0.00 ;\")","v":"$ 0.00 "}]
[140176,"DEMOLICION DE HORMIGON, IMPERMEABILIZANTE Y  ENLADRILLADO DE AZOTEA EN CUBIERTAS CON UN ESPESOR TOTAL DE 13 CM PROMEDIO, INCLUYE: HERRAMIENTA, EQUIPO NECESARIO, MANO DE OBRA, LIMPIEZA, ACARREO  Y RETIRO DE MATERIAL PRODUCTO DE LA DEMOLICION FUERA DE LA OBRA.\n","M2 ","104.0000",0,"CERO PESOS 00/100 M.N.",0,227608]
[948107,"RETIRO DE CALAFATEO DE JUNTAS DE DILATACION DE ENLADRILLADO DE AZOTEA EXISTENTE EN MAL ESTADO CON DIMENSIONES DE 3.5 CMS. DE ANCHO Y 2.0 CMS. DE PROFUNDIDAD, INCLUYE: HERRAMIENTA, LIMPIEZA, MANO DE OBRA, OPERACION, EQUIPO DE SEGURIDAD, LIMPIEZA Y RETIRO DEL MATERIAL PRODUCTO DEL CALAFATEO EXISTENTE FUERA DE LA OBRA.","ML ","21.0000",0,"CERO PESOS 00/100 M.N.",0,227616]
["B.02(319)","ENTREPISOS, CUBIERTA Y ACABADOS DE AZOTEA         ",null,null,null,null,{"$f":"TEXT(SUM(G59:G62), \"$ #,##0.00 ;\")","v":"$ 0.00 "}]
[322403,"FINO DE 1.5 CM. DE ESPESOR PROMEDIO, CON MORTERO DE CEMENTO-ARENA PROP. 1:3, PREVIA APLICACION DE IMPREGNACION EN LA TOTALIDAD DEL AREA DE FESTER BOND CON UN RENDIMIENTO DE 0.1667 LTS/M2, ACABADO APALILLADO, PARA RECIBIR SISTEMA IMPERMEABILIZACION PREFABRICADO O LOSETA CERAMICA, ETC., INCLUYE: MATERIALES, CIMBRA EN FRONTERAS, REMATES, DESPERDICIOS, HERRAMIENTAS, LIMPIEZAS, MANO DE OBRA  Y ACARREOS DEL MATERIAL AL SITIO DE SU UTILIZACION, A CUALQUIER NIVEL.\n","M2 ","168.0000",0,"CERO PESOS 00/100 M.N.",0,227622]
[324232,"FORJADO DE ZAVALETA EN AZOTEA A BASE DE JALCRETO SIMPLE F´C=100 KG/CM2, DE 15 CM POR LADO, A 45°, CON ACABADO APALILLADO, INCLUYE: MATERIALES, DESPERDICIOS, HERRAMIENTAS, EQUIPO DE SEGURIDAD, LIMPIEZA, MANO DE OBRA Y ACARREO DE MATERIALES AL LUGAR DE SU UTILIZACION A CUALQUIER NIVEL.","ML ","52.0000",0,"CERO PESOS 00/100 M.N.",0,227626]
[344125,"IMPERMEABILIZACION DE MUROS O LOSAS, A BASE DE MEMBRANA PREFABRICADA, MCA. IMPERQUIMIA, UNIPLAS AERO PLUS SBS, ALTO DESEMPEÑO CON VENTILACION ANTIABOLSAMIENTOS, FABRICADA A BASE DE ASFALTOS MODIFICADOS CON POLIMEROS SINTETICOS SBS (ESTIRENO BUTADIENO ESTIRENO) REFORZADA CON MALLA POLIESTER DE ALTA RESISTENCIA, ACABADO APARENTE A BASE DE GRAVILLA ESMALTADA A FUEGO, 4.5 MM  DE ESPESOR TOTAL, COLOR ROJO TERRACOTA, GARANTIA POR ESCRITO DE 10 AÑOS, POR LA EMPRESA CONTRATISTA., INCLUYE: LIMPIEZA Y PREPARACION DE LA SUPERFICIE, APLICACION DE PRIMER IMPERCOAT PRIMARIO SL, PARA ANCLAJE Y TAPAPORO DE LA SUPERFICIE, SELLADO DE FISURAS Y GRIETAS A BASE DE CEMENTO PLASTICO BITUMINOSO IMPERCOAT CEMENTO SBS, SUMINISTRO Y COLOCACION DE MEMBRANA POR MEDIO DE TERMOFUSION A BASE DE FUEGO DE SOPLETE DE GAS BUTANO, HACIENDO TRASLAPES MINIMOS DE 0.10 MTS. EN AMBOS SENTIDOS, SELLADO DE ORILLAS, REMATES Y TRASLAPES, MATERIALES MENORES Y DE CONSUMO, CORTES, DESPERDICIOS, LIMPIEZA GENERAL, HERRAMIENTAS, MANO DE OBRA ESPECIALIZADA Y ACARREOS AL SITIO DE SU COLOCACION.","M2 ","104.0000",0,"CERO PESOS 00/100 M.N.",0,227628]
[344860,"CALAFATEO DE JUNTAS DE DILATACION EN AZOTEA CON CEMENTO PLASTICO ASFALTICO, INCLUYE IMPRIMACION Y LIMPIEZAS.","ML ","21.0000",0,"CERO PESOS 00/100 M.N.",0,227632]
["C","EDIFICIO C",null,null,null,null,{"$f":"TEXT(SUM(G64 + G67), \"$ #,##0.00 ;\")","v":"$ 0.00 "}]
["C.01(140)","DEMOLICIONES, DESMONTAJES Y MECANICA DE SUELOS    ",null,null,null,null,{"$f":"TEXT(SUM(G65:G66), \"$ #,##0.00 ;\")","v":"$ 0.00 "}]
[140176,"DEMOLICION DE HORMIGON, IMPERMEABILIZANTE Y  ENLADRILLADO DE AZOTEA EN CUBIERTAS CON UN ESPESOR TOTAL DE 13 CM PROMEDIO, INCLUYE: HERRAMIENTA, EQUIPO NECESARIO, MANO DE OBRA, LIMPIEZA, ACARREO  Y RETIRO DE MATERIAL PRODUCTO DE LA DEMOLICION FUERA DE LA OBRA.\n","M2 ","189.0000",0,"CERO PESOS 00/100 M.N.",0,227609]
[948107,"RETIRO DE CALAFATEO DE JUNTAS DE DILATACION DE ENLADRILLADO DE AZOTEA EXISTENTE EN MAL ESTADO CON DIMENSIONES DE 3.5 CMS. DE ANCHO Y 2.0 CMS. DE PROFUNDIDAD, INCLUYE: HERRAMIENTA, LIMPIEZA, MANO DE OBRA, OPERACION, EQUIPO DE SEGURIDAD, LIMPIEZA Y RETIRO DEL MATERIAL PRODUCTO DEL CALAFATEO EXISTENTE FUERA DE LA OBRA.","ML ","39.0000",0,"CERO PESOS 00/100 M.N.",0,227617]
["C.02(319)","ENTREPISOS, CUBIERTA Y ACABADOS DE AZOTEA         ",null,null,null,null,{"$f":"TEXT(SUM(G68:G70), \"$ #,##0.00 ;\")","v":"$ 0.00 "}]
[322403,"FINO DE 1.5 CM. DE ESPESOR PROMEDIO, CON MORTERO DE CEMENTO-ARENA PROP. 1:3, PREVIA APLICACION DE IMPREGNACION EN LA TOTALIDAD DEL AREA DE FESTER BOND CON UN RENDIMIENTO DE 0.1667 LTS/M2, ACABADO APALILLADO, PARA RECIBIR SISTEMA IMPERMEABILIZACION PREFABRICADO O LOSETA CERAMICA, ETC., INCLUYE: MATERIALES, CIMBRA EN FRONTERAS, REMATES, DESPERDICIOS, HERRAMIENTAS, LIMPIEZAS, MANO DE OBRA  Y ACARREOS DEL MATERIAL AL SITIO DE SU UTILIZACION, A CUALQUIER NIVEL.\n","M2 ","189.0000",0,"CERO PESOS 00/100 M.N.",0,227623]
[344125,"IMPERMEABILIZACION DE MUROS O LOSAS, A BASE DE MEMBRANA PREFABRICADA, MCA. IMPERQUIMIA, UNIPLAS AERO PLUS SBS, ALTO DESEMPEÑO CON VENTILACION ANTIABOLSAMIENTOS, FABRICADA A BASE DE ASFALTOS MODIFICADOS CON POLIMEROS SINTETICOS SBS (ESTIRENO BUTADIENO ESTIRENO) REFORZADA CON MALLA POLIESTER DE ALTA RESISTENCIA, ACABADO APARENTE A BASE DE GRAVILLA ESMALTADA A FUEGO, 4.5 MM  DE ESPESOR TOTAL, COLOR ROJO TERRACOTA, GARANTIA POR ESCRITO DE 10 AÑOS, POR LA EMPRESA CONTRATISTA., INCLUYE: LIMPIEZA Y PREPARACION DE LA SUPERFICIE, APLICACION DE PRIMER IMPERCOAT PRIMARIO SL, PARA ANCLAJE Y TAPAPORO DE LA SUPERFICIE, SELLADO DE FISURAS Y GRIETAS A BASE DE CEMENTO PLASTICO BITUMINOSO IMPERCOAT CEMENTO SBS, SUMINISTRO Y COLOCACION DE MEMBRANA POR MEDIO DE TERMOFUSION A BASE DE FUEGO DE SOPLETE DE GAS BUTANO, HACIENDO TRASLAPES MINIMOS DE 0.10 MTS. EN AMBOS SENTIDOS, SELLADO DE ORILLAS, REMATES Y TRASLAPES, MATERIALES MENORES Y DE CONSUMO, CORTES, DESPERDICIOS, LIMPIEZA GENERAL, HERRAMIENTAS, MANO DE OBRA ESPECIALIZADA Y ACARREOS AL SITIO DE SU COLOCACION.","M2 ","189.0000",0,"CERO PESOS 00/100 M.N.",0,227629]
[344860,"CALAFATEO DE JUNTAS DE DILATACION EN AZOTEA CON CEMENTO PLASTICO ASFALTICO, INCLUYE IMPRIMACION Y LIMPIEZAS.","ML ","39.0000",0,"CERO PESOS 00/100 M.N.",0,227633]
["D","EDIFICIO D",null,null,null,null,{"$f":"TEXT(SUM(G72 + G75), \"$ #,##0.00 ;\")","v":"$ 0.00 "}]
["D.01(140)","DEMOLICIONES, DESMONTAJES Y MECANICA DE SUELOS    ",null,null,null,null,{"$f":"TEXT(SUM(G73:G74), \"$ #,##0.00 ;\")","v":"$ 0.00 "}]
[140176,"DEMOLICION DE HORMIGON, IMPERMEABILIZANTE Y  ENLADRILLADO DE AZOTEA EN CUBIERTAS CON UN ESPESOR TOTAL DE 13 CM PROMEDIO, INCLUYE: HERRAMIENTA, EQUIPO NECESARIO, MANO DE OBRA, LIMPIEZA, ACARREO  Y RETIRO DE MATERIAL PRODUCTO DE LA DEMOLICION FUERA DE LA OBRA.\n","M2 ","144.0000",0,"CERO PESOS 00/100 M.N.",0,227610]
[948107,"RETIRO DE CALAFATEO DE JUNTAS DE DILATACION DE ENLADRILLADO DE AZOTEA EXISTENTE EN MAL ESTADO CON DIMENSIONES DE 3.5 CMS. DE ANCHO Y 2.0 CMS. DE PROFUNDIDAD, INCLUYE: HERRAMIENTA, LIMPIEZA, MANO DE OBRA, OPERACION, EQUIPO DE SEGURIDAD, LIMPIEZA Y RETIRO DEL MATERIAL PRODUCTO DEL CALAFATEO EXISTENTE FUERA DE LA OBRA.","ML ","34.0000",0,"CERO PESOS 00/100 M.N.",0,227618]
["D.02(319)","ENTREPISOS, CUBIERTA Y ACABADOS DE AZOTEA         ",null,null,null,null,{"$f":"TEXT(SUM(G76:G79), \"$ #,##0.00 ;\")","v":"$ 0.00 "}]
[322040,"ENTORTADO DE JALCRETO F´C= 100 KG/CM2, AGREGANDO IMPERMEABILIZANTE INTEGRAL A RAZON DE 1 KG/ 50 KG DE CEMENTODE, DE 10.0 CM DE ESPESOR PROMEDIO, PARA DAR PENDIENTES EN ENTREPISOS Y AZOTEAS, ACABADO  APALILLADO FINO EN FORMA INTEGRAL (SIN PASTA), PARA RECIBIR TEJA, IMPERMEABILIZANTE Y/O ENLADRILLADO,  INCLUYE: MATERIALES, NIVELACION,  ELEVACIONES, DESPERDICIOS, HERRAMIENTAS,  LIMPIEZA, MANO DE OBRA Y ACARREOS AL SITIO DE SU COLOCACION, EN CUALQUIER NIVEL.","M2 ","144.0000",0,"CERO PESOS 00/100 M.N.",0,227620]
[322403,"FINO DE 1.5 CM. DE ESPESOR PROMEDIO, CON MORTERO DE CEMENTO-ARENA PROP. 1:3, PREVIA APLICACION DE IMPREGNACION EN LA TOTALIDAD DEL AREA DE FESTER BOND CON UN RENDIMIENTO DE 0.1667 LTS/M2, ACABADO APALILLADO, PARA RECIBIR SISTEMA IMPERMEABILIZACION PREFABRICADO O LOSETA CERAMICA, ETC., INCLUYE: MATERIALES, CIMBRA EN FRONTERAS, REMATES, DESPERDICIOS, HERRAMIENTAS, LIMPIEZAS, MANO DE OBRA  Y ACARREOS DEL MATERIAL AL SITIO DE SU UTILIZACION, A CUALQUIER NIVEL.\n","M2 ","144.0000",0,"CERO PESOS 00/100 M.N.",0,227624]
[344125,"IMPERMEABILIZACION DE MUROS O LOSAS, A BASE DE MEMBRANA PREFABRICADA, MCA. IMPERQUIMIA, UNIPLAS AERO PLUS SBS, ALTO DESEMPEÑO CON VENTILACION ANTIABOLSAMIENTOS, FABRICADA A BASE DE ASFALTOS MODIFICADOS CON POLIMEROS SINTETICOS SBS (ESTIRENO BUTADIENO ESTIRENO) REFORZADA CON MALLA POLIESTER DE ALTA RESISTENCIA, ACABADO APARENTE A BASE DE GRAVILLA ESMALTADA A FUEGO, 4.5 MM  DE ESPESOR TOTAL, COLOR ROJO TERRACOTA, GARANTIA POR ESCRITO DE 10 AÑOS, POR LA EMPRESA CONTRATISTA., INCLUYE: LIMPIEZA Y PREPARACION DE LA SUPERFICIE, APLICACION DE PRIMER IMPERCOAT PRIMARIO SL, PARA ANCLAJE Y TAPAPORO DE LA SUPERFICIE, SELLADO DE FISURAS Y GRIETAS A BASE DE CEMENTO PLASTICO BITUMINOSO IMPERCOAT CEMENTO SBS, SUMINISTRO Y COLOCACION DE MEMBRANA POR MEDIO DE TERMOFUSION A BASE DE FUEGO DE SOPLETE DE GAS BUTANO, HACIENDO TRASLAPES MINIMOS DE 0.10 MTS. EN AMBOS SENTIDOS, SELLADO DE ORILLAS, REMATES Y TRASLAPES, MATERIALES MENORES Y DE CONSUMO, CORTES, DESPERDICIOS, LIMPIEZA GENERAL, HERRAMIENTAS, MANO DE OBRA ESPECIALIZADA Y ACARREOS AL SITIO DE SU COLOCACION.","M2 ","144.0000",0,"CERO PESOS 00/100 M.N.",0,227630]
[344860,"CALAFATEO DE JUNTAS DE DILATACION EN AZOTEA CON CEMENTO PLASTICO ASFALTICO, INCLUYE IMPRIMACION Y LIMPIEZAS.","ML ","34.0000",0,"CERO PESOS 00/100 M.N.",0,227634]
[null,"RESUMEN DE PARTIDAS"]
["BAS-REH-04736","REHABILITACIÓN GENERAL EN EL JARDÍN DE NIÑOS EMILIANO ZAPATA CCT 14DJN0034Z, UBICADO EN COLONIA EMILIANO ZAPATA, MUNICIPIO DE PUERTO VALLARTA, JALISCO.",null,null,null,null,{"$f":"G17","v":"$ 0.00 "}]
["SAN","SANITARIOS",null,null,null,null,{"$f":"G18","v":"$ 0.00 "}]
["SAN.01(140)","DEMOLICIONES, DESMONTAJES Y MECANICA DE SUELOS    ",null,null,null,null,{"$f":"G19","v":"$ 0.00 "}]
["SAN.02(160)","CIMENTACION                                       ",null,null,null,null,{"$f":"G27","v":"$ 0.00 "}]
["SAN.03(355)","RECUBRIMIENTOS Y ACABADOS                         ",null,null,null,null,{"$f":"G29","v":"$ 0.00 "}]
["SAN.04(372)","PISOS                                             ",null,null,null,null,{"$f":"G31","v":"$ 0.00 "}]
["SAN.05(410)","CANCELERIA, HERRERIA, ALUMINIO, VIDRIOS Y CHAPAS  ",null,null,null,null,{"$f":"G35","v":"$ 0.00 "}]
["SAN.06(564)","INSTALACION HIDRAULICA, SANITARIA Y GAS EN EDIF.  ",null,null,null,null,{"$f":"G39","v":"$ 0.00 "}]
["A","EDIFICIO A",null,null,null,null,{"$f":"G45","v":"$ 0.00 "}]
["A.01(140)","DEMOLICIONES, DESMONTAJES Y MECANICA DE SUELOS    ",null,null,null,null,{"$f":"G46","v":"$ 0.00 "}]
["A.02(319)","ENTREPISOS, CUBIERTA Y ACABADOS DE AZOTEA         ",null,null,null,null,{"$f":"G49","v":"$ 0.00 "}]
["B","EDIFICIO B",null,null,null,null,{"$f":"G54","v":"$ 0.00 "}]
["B.01(140)","DEMOLICIONES, DESMONTAJES Y MECANICA DE SUELOS    ",null,null,null,null,{"$f":"G55","v":"$ 0.00 "}]
["B.02(319)","ENTREPISOS, CUBIERTA Y ACABADOS DE AZOTEA         ",null,null,null,null,{"$f":"G58","v":"$ 0.00 "}]
["C","EDIFICIO C",null,null,null,null,{"$f":"G63","v":"$ 0.00 "}]
["C.01(140)","DEMOLICIONES, DESMONTAJES Y MECANICA DE SUELOS    ",null,null,null,null,{"$f":"G64","v":"$ 0.00 "}]
["C.02(319)","ENTREPISOS, CUBIERTA Y ACABADOS DE AZOTEA         ",null,null,null,null,{"$f":"G67","v":"$ 0.00 "}]
["D","EDIFICIO D",null,null,null,null,{"$f":"G71","v":"$ 0.00 "}]
["D.01(140)","DEMOLICIONES, DESMONTAJES Y MECANICA DE SUELOS    ",null,null,null,null,{"$f":"G72","v":"$ 0.00 "}]
["D.02(319)","ENTREPISOS, CUBIERTA Y ACABADOS DE AZOTEA         ",null,null,null,null,{"$f":"G75","v":"$ 0.00 "}]
[]
["IMPORTE CON LETRA (IVA INCLUIDO)",null,null,null,null,"SUBTOTAL M.N.",{"$f":"TEXT(G17,  \"$ #,##0.00 ;\")","v":"$ 0.00 "}]
[{"$f":"UPPER(CONVERTIRNUM(ROUND( G17 * 1.16, 2)))","v":"CERO PESOS 00/100 M.N."},null,null,null,null,"IVA M.N.",{"$f":"TEXT(ROUND( G17 * 0.16, 2),  \"$ #,##0.00 ;\")","v":"$ 0.00 "}]
[null,null,null,null,null,"TOTAL M.N.",{"$f":"TEXT(ROUND( G17 * 1.16, 2),  \"$ #,##0.00 ;\")","v":"$ 0.00 "}]